Cogmind - Beta 13 @@@ ROGUE MODE // 2024.04.05 @ 04:05:08 Player: Nick Result: Destroyed by Y-45 Defender with Beam Rifle Performance ------------- Evolutions (2) 1000 Regions Visited (4) 800 Robots Destroyed (36) 180 Value Destroyed (900) 900 Prototype IDs (2) 40 Alien Tech Used (0) 0 Bonus (700) 700 TOTAL SCORE: 3620 Bonus ------- Entered Garrisons 200 Used RIF Installer 500 Cogmind --------- Core Integrity 0/550 Matter 220/300 Energy 100/100 System Corruption 1% Temperature Cool (12) Movement Core (50) Location -8/Garrison Parts ------- > --- POWER (1) -------- (None) > --- PROPULSION (4) --- (None) > --- UTILITY (3) ------ Signal Interpreter > --- WEAPON (3) ------- Improved Datajack > --- INVENTORY (5) ---- Deuterium Engine Surge Thruster Compact Battery (200) Improved Sensor Array Peak State ------------ > --- POWER ------------ Light Nuclear Core > --- PROPULSION ------- Flight Unit Surge Thruster Surge Thruster Surge Thruster > --- UTILITY ---------- Small Storage Unit Improved Sensor Array Signal Interpreter > --- WEAPON ----------- Particle Gun Particle Gun Concussive RPG > --- INVENTORY -------- Deuterium Engine Surge Thruster Improved Heat Sink Compact Battery Medium Armor Plating Shield Generator Concussive RPG Improved Datajack [Rating: 27] Favorites ----------- Power Ion Engine Engine Ion Engine Power Core Light Nuclear Core Propulsion Aluminum Leg Leg Aluminum Leg Wheel Wheel Flight Unit Flight Unit Utility Small Storage Unit Device Heat Sink Storage Small Storage Unit Processor Signal Interpreter Protection Medium Armor Plating Weapon Medium Laser Energy Gun Medium Laser Ballistic Gun Light Assault Rifle Launcher Concussive RPG Special Weapon Welding Torch Special Melee Weapon Improved Datajack Build | -11 -10 -9 -8 -8 ------- Run | Yrd Mat Mat Mat Gar Slots Evolved 4 | . . 2 2 . Power . | . . . . . Propulsion 2 | . . 1 1 . Utility 1 | . . . 1 . Weapon 1 | . . 1 . . Parts Attached 39 | 5 4 5 15 10 Power 3 | 1 . . 1 1 Engine 2 | 1 . . 1 . Core 1 | . . . . 1 Reactor . | . . . . . Propulsion 13 | 2 . 1 7 3 Treads . | . . . . . Leg 6 | 2 . 1 3 . Wheel 1 | . . . 1 . Hover . | . . . . . Flight 6 | . . . 3 3 Utility 10 | . 4 2 3 1 Device 5 | . 1 1 2 1 Storage 3 | . 3 . . . Processor 1 | . . . 1 . Hackware . | . . . . . Protection 1 | . . 1 . . Artifact . | . . . . . Weapon 13 | 2 . 2 4 5 Energy Gun 9 | 2 . 1 4 2 Energy Cannon . | . . . . . Ballistic Gun 1 | . . 1 . . Ballistic Cannon . | . . . . . Launcher 1 | . . . . 1 Special Weapon 1 | . . . . 1 Impact Weapon . | . . . . . Slashing Weapon . | . . . . . Piercing Weapon . | . . . . . Special Melee Weapon 1 | . . . . 1 Unidentified Prototypes . | . . . . . Parts Lost 18 | . . 2 3 13 Power 1 | . . . . 1 Propulsion 9 | . . . 2 7 Utility 2 | . . 1 . 1 Weapon 6 | . . 1 1 4 Highest Loss Streak 7 | . . 2 1 7 To Critical Strikes . | . . . . . Average Slot Usage (%) 93 | . 94 96 98 76 Engine 10 | . 14 11 9 5 Leg 20 | . 28 30 14 . Wheel 2 | . . . 6 3 Flight 6 | . . . 13 19 Device 10 | . 11 10 9 8 Storage 9 | . 11 11 9 6 Processor 4 | . . . 9 9 Energy Gun 23 | . 28 21 22 17 Ballistic Gun 4 | . . 11 4 . Naked Turns . | . . . . . Heaviest Build 21 | 9 15 21 18 18 Greatest Support 40 | 20 20 30 40 13 Greatest Overweight (x) 3 | 1 . . 1 3 Average Overweight (x) . | . . . . . Largest Inventory Capacity 20 | 5 20 8 8 8 Average Capacity 7 | 5 7 8 8 7 Most Carried 8 | 5 8 8 8 8 Average Carried 6 | 3 7 7 6 6 Final Capacity 8 | 5 8 8 8 5 Final Carried 8 | 5 8 6 8 4 Class Distribution -------------------- 33% | Mutant 25% | Gunner 23% | Scavenger-Skirmisher 10% | Skirmisher 4% | Scavenger-Sprinter 3% | Scavenger-Mutant Dominant Class ---------------- Mutant | -10/Materials Gunner | -9/Materials Scavenger-Skirmisher | -8/Materials Scavenger-Sprinter | -8/Garrison Resources | -11 -10 -9 -8 -8 ----------- Run | Yrd Mat Mat Mat Gar Matter Collected 522 | 211 74 59 160 18 Remotely . | . . . . . Salvage Created 1044 | . 192 385 271 196 Parts 80 | . 14 32 16 18 Haulers Intercepted . | . . . . . Recyclers Shooed 1 | . . 1 . . Parts Field Recycled . | . . . . . Retrieved Matter . | . . . . . Parts Self-Destructed . | . . . . . Prevented . | . . . . . Kills | -11 -10 -9 -8 -8 ------- Run | Yrd Mat Mat Mat Gar Combat Hostiles Destroyed 30 | . 4 11 7 8 Guns 28 | . 4 10 7 7 AOE 1 | . . 1 . . Classes Destroyed 6 | . 3 1 1 1 Operator 1 | . 1 . . . Watcher 5 | . 1 3 1 . Swarmer 12 | . . 4 4 4 Cutter 2 | . . . . 2 Grunt 15 | . 4 7 2 2 Brawler 1 | . . . 1 . Best Kill Streak 8 | . 2 8 2 4 Combat Bots Only 6 | . 2 6 2 4 Max Kills in Single Turn 1 | . 1 1 1 1 Gunslinging . | . . . . . Exploded 1 | . . 1 . . Melee . | . . . . . Uniques/NPCs Destroyed . | . . . . . Combat | -11 -10 -9 -8 -8 -------- Run | Yrd Mat Mat Mat Gar Hostile Shots Fired 194 | . 6 42 39 107 Missed 55 | . 4 10 8 33 Damage Taken 1987 | . 24 377 602 984 Core 574 | . . 19 162 393 Absorbed by Shields . | . . . . . Regen/Repaired (Parts) 9 | . . 9 . . Core Remaining (%) 98 | 100 100 95 . . Volleys Fired 95 | . 11 28 22 34 Largest 3 | . 2 3 3 3 Hottest 161 | . 90 110 146 161 Shots Fired 228 | . 21 81 65 61 Gun 222 | . 21 81 65 55 Cannon . | . . . . . Launcher 1 | . . . . 1 Special 5 | . . . . 5 Kinetic 31 | . . 28 3 . Thermal 146 | . 10 28 48 60 Explosive 1 | . . . . 1 Electromagnetic 50 | . 11 25 14 . Robot Hit Streak 13 | . 5 10 13 6 Robot Miss Streak 3 | . 3 3 2 3 Penetration Max . | . . . . . Secondary Targets 3 | . . 1 1 1 Max Gunslinging Chain 1 | . . 1 1 1 Shots Hit Robots 135 | . 12 45 41 37 Core Hits 67 | . 8 24 18 17 Critical Kills . | . . . . . Critical Parts Destroyed . | . . . . . Critical Strikes 3 | . 1 . . 2 Burn 3 | . 1 . . 2 Melee Attacks 3 | . . . . 3 Impact . | . . . . . Slashing . | . . . . . Piercing . | . . . . . Sneak Attacks . | . . . . . Combat Hostiles . | . . . . . Follow-up Attacks . | . . . . . Damage Inflicted 1975 | . 222 687 530 536 Guns 1685 | . 178 529 505 473 Cannons 17 | . . . . 17 Explosions 265 | . 44 158 25 38 Melee . | . . . . . Ramming 4 | . . . . 4 Kinetic 129 | . . 112 17 . Thermal 1179 | . 95 226 381 477 Explosive 196 | . . 158 . 38 Electromagnetic 450 | . 127 191 132 . Impact 17 | . . . . 17 Slashing . | . . . . . Piercing . | . . . . . Highest Corruption 1 | . . . . 1 Average Corruption 1 | . . . . 1 Corruption Purged . | . . . . . Corruption Blocked . | . . . . . Effects 3 | . . . . 3 Energy Discharges 1 | . . . . 1 Misfires 1 | . . . . 1 Weapon Failures 1 | . . . . 1 Overload Shots . | . . . . . Overflow Damage 19 | . . 14 5 . Projectiles . | . . . . . Explosions 19 | . . 14 5 . Melee . | . . . . . Knockbacks . | . . . . . Impact . | . . . . . Kinetic . | . . . . . Secondary . | . . . . . Self-Inflicted Damage 25 | . . . . 25 Shots 1 | . . . . 1 Rammed 2 | . . . . 2 Targets Rammed 2 | . . . . 2 Kicked . | . . . . . Crushed . | . . . . . Highest Temperature 568 | . 132 66 506 568 Average Temperature 121 | . 57 23 115 198 Received Heat Transfer 642 | . 12 126 153 351 Effects 17 | . . . 7 10 Shutdowns 3 | . . . 1 2 Energy Bleed 2 | . . . 1 1 Interference 8 | . . . 4 4 Matter Decay 1 | . . . . 1 Damage (minor) 2 | . . . . 2 Damage (core) 1 | . . . 1 . Siege Activations . | . . . . . Robots Corrupted . | . . . . . Combat Hostiles . | . . . . . Parts Fried 1 | . . 1 . . Impact Corruptions . | . . . . . Robots Melted 1 | . . . . 1 Combat Hostiles 1 | . . . . 1 Parts Melted 4 | . 2 . . 2 Heat Transferred 3277 | . 272 666 1016 1323 Parts Sabotaged . | . . . . . Parts Stolen . | . . . . . Parts Stripped . | . . . . . Power Chain Reactions 2 | . 1 . 1 . Alert | -11 -10 -9 -8 -8 ------- Run | Yrd Mat Mat Mat Gar Peak Influence 332 | . 162 278 142 332 Initial 51 | . . . 51 48 Average 112 | . 96 195 54 163 Maximum Alert Level 1 | . . 1 . 1 Low Security (%) 81 | 100 100 37 100 82 Level 1 18 | . . 62 . 17 Level 2 . | . . . . . Level 3 . | . . . . . Level 4 . | . . . . . Level 5 . | . . . . . High Security . | . . . . . Max Security . | . . . . . Squads Dispatched 3 | . 2 1 . . Investigation 1 | . 1 . . . Extermination . | . . . . . Reinforcement 2 | . 1 1 . . Assault . | . . . . . Garrison . | . . . . . Intercept . | . . . . . Searches Triggered . | . . . . . Construction Impeded . | . . . . . Haulers Reinforced . | . . . . . Active Scanning Responses . | . . . . . Cargo Convoy Interrupts . | . . . . . Stealth | -11 -10 -9 -8 -8 --------- Run | Yrd Mat Mat Mat Gar Distress Signals 3 | . 2 . 1 . Communications Jammed . | . . . . . Distress Signals . | . . . . . Times Spotted 74 | . 8 23 16 27 Peak Tracking Total 15 | . 4 6 4 15 Tactical Retreats 4 | . . . 2 2 Traps | -11 -10 -9 -8 -8 ------- Run | Yrd Mat Mat Mat Gar Traps Triggered 1 | . 1 . . . Indirectly . | . . . . . Trap Hack Attempts . | . . . . . Triggered . | . . . . . Disarmed . | . . . . . Reprogrammed . | . . . . . Reused . | . . . . . Traps Extracted . | . . . . . Installed . | . . . . . Triggered . | . . . . . Machines | -11 -10 -9 -8 -8 ---------- Run | Yrd Mat Mat Mat Gar Machines Disabled 3 | . . 2 1 . Max in Single Turn 1 | . . 1 1 . Machines Repaired . | . . . . . Machines Dismantled . | . . . . . Machines Sabotaged . | . . . . . Overloaded Fab Kills . | . . . . . Hacking | -11 -10 -9 -8 -8 --------- Run | Yrd Mat Mat Mat Gar Machines Accessed 12 | . 3 2 5 2 Terminals 7 | . 1 1 3 2 Fabricators . | . . . . . Repair Stations 1 | . . 1 . . Recycling Units 2 | . 2 . . . Scanalyzers 1 | . . . 1 . Garrison Access 1 | . . . 1 . Total Hacks 31 | . 5 5 17 4 Successful 22 | . 5 4 12 1 Failed 9 | . . 1 5 3 Catastrophic 1 | . . . . 1 Database Lockouts . | . . . . . Manual . | . . . . . Terminals 18 | . 2 2 10 4 Fabricators . | . . . . . Repair Stations 3 | . . 3 . . Recycling Units 3 | . 3 . . . Scanalyzers 5 | . . . 5 . Garrison Access 2 | . . . 2 . Terminal Hacks 12 | . 2 2 7 1 Record 4 | . 1 2 1 . Robot Analysis 1 | . . . 1 . Prototype ID Bank 1 | . . . 1 . Emergency Access Points 2 | . . . 1 1 Alert Level 1 | . 1 . . . Unreport Threat 1 | . . . 1 . Locate Traps 2 | . . . 2 . Fabricator Hacks . | . . . . . Repair Station Hacks 2 | . . 2 . . Scan Component 1 | . . 1 . . Repair 1 | . . 1 . . Recycling Unit Hacks 3 | . 3 . . . Process 1 | . 1 . . . Report Inventory 2 | . 2 . . . Scanalyzer 4 | . . . 4 . Insert Component 2 | . . . 2 . Analyze 2 | . . . 2 . Garrison Access Hacks 1 | . . . 1 . Unlock Access 1 | . . . 1 . Unauthorized Hacks . | . . . . . Terminals . | . . . . . Fabricators . | . . . . . Repair Stations . | . . . . . Recycling Units . | . . . . . Scanalyzers . | . . . . . Garrison Access . | . . . . . Data Cores Recovered 1 | . 1 . . . Used . | . . . . . Hacking Detections 11 | . 3 2 4 2 Full Trace Events 1 | . . . . 1 Feedback Events 1 | . . . . 1 Corruption 1 | . . . . 1 Feedback Blocked . | . . . . . Robot Schematics Acquired . | . . . . . Robots Built . | . . . . . Authchips . | . . . . . Time . | . . . . . Total Robot Build Rating . | . . . . . Part Schematics Acquired 2 | . . . 2 . Parts Built . | . . . . . Authchips . | . . . . . Time . | . . . . . Total Part Build Rating . | . . . . . Parts Repaired 1 | . . 1 . . Time 26 | . . 26 . . Parts Recycled . | . . . . . Recycled Matter 130 | . 130 . . . Retrieved Matter . | . . . . . Retrieved Components . | . . . . . Parts Scanalyzed 2 | . . . 2 . Part Schematics Acquired 2 | . . . 2 . Parts Damaged . | . . . . . Bothacking | -11 -10 -9 -8 -8 ------------ Run | Yrd Mat Mat Mat Gar Used RIF Installer 1 | . . . . 1 Robots Hacked 2 | . . . . 2 Non-combat . | . . . . . Combat 2 | . . . . 2 Robot Hacks Applied 2 | . . . . 2 parse_system 2 | . . . . 2 Relay Couplers Released . | . . . . . Fabnet Peak Effective % . | . . . . . Robots Rewired . | . . . . . Allies Hacked . | . . . . . Hacks Repelled . | . . . . . Allies | -11 -10 -9 -8 -8 -------- Run | Yrd Mat Mat Mat Gar Total Allies . | . . . . . Largest Group . | . . . . . Highest-Rated Group . | . . . . . Highest-Rated Ally . | . . . . . Total Orders . | . . . . . Ally Attacks . | . . . . . Total Damage . | . . . . . Kills . | . . . . . Allies Corrupted . | . . . . . Allies Melted . | . . . . . Intel | -11 -10 -9 -8 -8 ------- Run | Yrd Mat Mat Mat Gar Robot Analysis Total 1 | . . . 1 . Derelict Logs Recovered . | . . . . . Drone Launches . | . . . . . Drone Recoveries . | . . . . . Exploration | -11 -10 -9 -8 -8 ------------- Run | Yrd Mat Mat Mat Gar Turns Passed 1803 | 117 433 482 537 234 Spaces Moved 1047 | 93 283 253 282 136 Core 30 | 30 . . . . Treads . | . . . . . Legs 790 | 63 283 253 191 . Wheels 3 | . . . 3 . Hover . | . . . . . Flight 224 | . . . 88 136 Fastest Speed 27 | 50 120 120 95 27 Average Speed 113 | 110 120 120 120 73 Slowest Speed 280 | 120 120 120 190 280 Overloaded Moves . | . . . . . Propulsion Burnouts . | . . . . . Robots Hopped . | . . . . . Cave-ins Triggered . | . . . . . Exploration Rate (%) 27 | 5 51 24 24 33 Regions Visited 4 Branch Regions . Pre-discovered Areas . | . . . . . Known Exits Taken 1 | . . . 1 . Unknown Exits Taken 3 | 1 1 1 . . Scrap Searched . | . . . . . Spaces Dug . | . . . . . Terrain Destroyed 16 | . 3 11 2 . Melee . | . . . . . Projectile . | . . . . . AOE 16 | . 3 11 2 . Terrain Rammed . | . . . . . Walls Destroyed . | . . . . . Machines Disabled . | . . . . . Actions | -11 -10 -9 -8 -8 --------- Run | Yrd Mat Mat Mat Gar Total 1488 | 107 355 377 431 218 Wait 239 | . 49 79 92 19 Move 1043 | 92 282 252 281 136 Hop . | . . . . . Pick Up 48 | 10 7 8 14 9 Fast Attach . | . . . . . Attach 28 | 5 2 5 8 8 Detach 1 | . . . 1 . Swap 11 | . 2 . 7 2 Drop 18 | . 2 5 6 5 Fire 95 | . 11 28 22 34 Melee 3 | . . . . 3 Ram 2 | . . . . 2 Kick . | . . . . . Crush . | . . . . . Escape Stasis . | . . . . . Rewire . | . . . . . Trap . | . . . . . Miscellaneous . | . . . . . Route ------- -11/Scrapyard -10/Materials (discovered 3 exits: *Mat x2 / [*Min]) -9/Materials -8/Materials -8/Garrison History --------- Turn | Location | Event 13 | -11/Scrapyard | Discovered new exit (range 14) 118 | -11/Scrapyard | Entered Materials 314 | -10/Materials | Build established: Mutant 323 | -10/Materials | Discovered new exit (range 5) 356 | -10/Materials | Discovered new exit (range 13) 523 | -10/Materials | Discovered new exit (range 10) 551 | -10/Materials | Entered another Materials area 551 | -9/Materials | Evolved 2 slots: Propulsion x1, Weapon x1 859 | -9/Materials | Build established: Gunner 953 | -9/Materials | Repaired Ion Engine 990 | -9/Materials | Discovered new exit (range 9) 1033 | -9/Materials | Entered another Materials area 1033 | -8/Materials | Evolved 2 slots: Propulsion x1, Utility x1 1568 | -8/Materials | Identified exit to Garrison 1570 | -8/Materials | Entered Garrison 1643 | -8/Garrison | Build established: Scavenger-Skirmisher 1685 | -8/Garrison | Core integrity fell below 50% 1707 | -8/Garrison | Lost 4 parts (2n2w) 1740 | -8/Garrison | Triggered checkpoint 1740 | -8/Garrison | Triggered checkpoint 1748 | -8/Garrison | Triggered checkpoint 1752 | -8/Garrison | Triggered checkpoint 1758 | -8/Garrison | Triggered checkpoint 1767 | -8/Garrison | Installed Relay Interface Framework 1796 | -8/Garrison | Core integrity fell below 20% 1804 | -8/Garrison | Destroyed by Y-45 Defender with Beam Rifle Last Messages --------------- melee weapon. Even while active, melee weapons do not fire together with ranged weapons in the same volley. 01799_ Jacked G-47 Trooper... >>parse_system Reading system data... 01800_ Surge Thruster destroyed. 01800_ Jacked G-47 Trooper... 01800_ Command string: man 01800_ No effect. 01801_ Jacked Y-45 Defender... >>parse_system Reading system data... 01802_ Slammed into Y-45 Defender. 01802_ Lgt. Nuclear Core destroyed. 01803_ Acquired 18 matter. 01803_ G-47 Trooper heat damages Particle Gun. 01803_ Slammed into Y-45 Defender. 01803_ Destabilizing: System interference. 01803_ Signal Interpreter temporarily disabled. Map ----- +----------------------------------------------------+ | ??????????????????????????????????????????# | | ??????????????????????????????????????????+ | | ??????????????????????????????????????????+ | | ??????????????????????????????????????????# | | ??????????????????????????????????????????# | | ??????????????????????????????????????????# | | ??????????????????????????????????????????# | | ??????????????????????????????????????????+ | | ??????????????????????????????????????????# | | ??????????????????????????????????????????# | | ??????????????????????????????????????????# | | ??????????????####################++####### | | ?????????????? | | ?????????????? | | ?????????????? | | ???????????????????+?###### #####[ #######+# | | ????????????????????????### #???# #???????? | | ??????????????????# ##### #???# ??????? | | ??????????????????# +???+ +?????? | | ??????????????????####### #???# #?????? | | ????????????????????????### #???# ###?????? | | ??????????????????????????# #???# #???????? | | ??????????????????????????# #???# #???????? | | ?????????????#######??????# #???# #???????? | | ?????????????#""""g######## #???# #???????? | | ?????????????#" g%Y@Yggggg #???# ???????? | | ?????????????#""""Y##gY!###g #???# #???????? | | ?????????????############?# #???# #???????? | | ??????????????????????????# #???# ????????? | | ??????????????????????????# #???? ????????? | | ??????????????????????????# #???? ????????? | | ??????????????????????????# #???? ????????? | | ?????????????????????????? #??????????????? | | ?????????????????????????? #??????????????? | | ?????????????????????????? #??????????????? | | ??????????????????????????# #??????????????? | | ??????????????????????????? +???+??????????? | | ??????????????????????????? ???????????????? | | ???????????????????????????##???????????????? | | ????????????????????????????????????????????? | | ????????????????????????????????????????????? | | ????????????????????????????????????????????? | | ????????????????????????????????????????????? | | ????????????????????????????????????????????? | | ????????????????????????????????????????????? | | ????????????????????????????????????????????? | | ????????????????????????????????????????????? | | | | | | | +----------------------------------------------------+ Best States ------------- Heat Dissipation 45 Energy Generation 14 Energy Capacity 250 Matter Stores 300 Matter Capacity 300 Sight Range 16 Robot Scan Range 15 Terrain Scan Density 10 Armor Coverage 225 Evasion (%) 64 Item Schematics ----------------- Shield Generator | -8/Materials | Scanalyzed Med. Armor Plating | -8/Materials | Scanalyzed Robot Schematics ------------------ None Fabricated ------------ Nothing Alien Tech Used ----------------- None Achievements -------------- None Challenges ------------ None Game ------ Seed BlastRelayBoomstick Manual? 0 Play Time 00:35:51 Cumulative 1.8 hours Start 2024.04.05 @ 03:28:52 End 2024.04.05 @ 04:05:08 Sessions 1 Manual Loads 0 Difficulty Rogue Special Mode None Game No. 5 Rogue 5 Adventurer 0 Explorer 0 Win Type - Total 0 Types 0/0/0/0/0/0/0/0/0 Lore% 10 Gallery% 7 Achievement% 8 Wizard Run 0 Options --------- Layout 1 ASCII 0 Keyboard 0 Movement Numpad Keybinds 0 Fullscreen 2 Font 24/Smallcaps Map View 50x35 Zoom Use 0% Tactical HUD 1 Map Filters NONE Filters NONE Steam 1 RUN: cbb03d14-a2ac-42e9-820d-ea03af3c2de5